[Event "Titled Tuesday Blitz March 08 Late 2022"]
[White "Goltseva, Ekaterina"]
[Black "Paravyan, David"]
[WhiteFideId "24173770"]
[BlackFideId "4194985"]
[WhiteElo "2140"]
[BlackElo "2569"]
[Result "1-0"]
[Round "02"]
[TimeControl "180+1"]
[Date "2022.03.08"]
[WhiteClock "0:00:03"]
[BlackClock "0:00:03"]

1. d4 {[%clk 0:03:00]}  Nf6 {[%clk 0:02:59]} 2. c4 {[%clk 0:03:00]}  g6 {[%clk 0:02:59]} 3. Nc3 {[%clk 0:02:57]}  d5 {[%clk 0:03:00]} 4. Nf3 {[%clk 0:02:57]}  Bg7 {[%clk 0:03:00]} 5. h4 {[%clk 0:02:57]}  O-O {[%clk 0:02:40]} 6. cxd5 {[%clk 0:02:54]}  Nxd5 {[%clk 0:02:36]} 7. h5 {[%clk 0:02:55]}  c5 {[%clk 0:02:35]} 8. hxg6 {[%clk 0:02:36]}  hxg6 {[%clk 0:02:36]} 9. Bh6 {[%clk 0:02:36]}  Nxc3 {[%clk 0:02:32]} 10. bxc3 {[%clk 0:02:36]}  Bxh6 {[%clk 0:02:33]} 11. Rxh6 {[%clk 0:02:35]}  Kg7 {[%clk 0:02:34]} 12. Rh4 {[%clk 0:02:29]}  cxd4 {[%clk 0:01:58]} 13. Rxd4 {[%clk 0:02:10]}  Qa5 {[%clk 0:01:47]} 14. Qd2 {[%clk 0:02:06]}  Nc6 {[%clk 0:01:42]} 15. Rh4 {[%clk 0:02:03]}  Rh8 {[%clk 0:01:43]} 16. Rxh8 {[%clk 0:01:55]}  Kxh8 {[%clk 0:01:44]} 17. Qh6+ {[%clk 0:01:55]}  Kg8 {[%clk 0:01:43]} 18. Rc1 {[%clk 0:01:54]}  Qa3 {[%clk 0:01:39]} 19. Rc2 {[%clk 0:01:46]}  f6 {[%clk 0:00:46]} 20. Qxg6+ {[%clk 0:01:45]}  Kf8 {[%clk 0:00:46]} 21. e3 {[%clk 0:01:09]}  Be6 {[%clk 0:00:35]} 22. Ng5 {[%clk 0:01:05]}  Bg8 {[%clk 0:00:18]} 23. Bc4 {[%clk 0:00:57]}  e6 {[%clk 0:00:17]} 24. Nxe6+ {[%clk 0:00:43]}  Bxe6 {[%clk 0:00:10]} 25. Bxe6 {[%clk 0:00:42]}  Nd8 {[%clk 0:00:10]} 26. Qxf6+ {[%clk 0:00:35]}  Ke8 {[%clk 0:00:10]} 27. Qg6+ {[%clk 0:00:20]}  Ke7 {[%clk 0:00:10]} 28. Bb3 {[%clk 0:00:16]}  Rc8 {[%clk 0:00:06]} 29. Rd2 {[%clk 0:00:16]}  Qc1+ {[%clk 0:00:04]} 30. Ke2 {[%clk 0:00:16]}  Qxc3 {[%clk 0:00:05]} 31. Qd6+ {[%clk 0:00:14]}  Ke8 {[%clk 0:00:04]} 32. Ba4+ {[%clk 0:00:06]}  Kf7 {[%clk 0:00:03]} 33. Bb3+ {[%clk 0:00:05]}  Ke8 {[%clk 0:00:04]} 34. Qd7+ {[%clk 0:00:05]}  Kf8 {[%clk 0:00:04]} 35. Qf5+ {[%clk 0:00:04]}  Ke8 {[%clk 0:00:04]} 36. Qe4+ {[%clk 0:00:02]}  Kf8 {[%clk 0:00:04]} 37. Rc2 {[%clk 0:00:02]}  Nf7 {[%clk 0:00:01]} 38. Rxc3 {[%clk 0:00:02]}  Rxc3 {[%clk 0:00:02]} 39. Qb4+ {[%clk 0:00:02]}  Kg7 {[%clk 0:00:02]} 40. Qxc3+ {[%clk 0:00:03]}  Ne5 {[%clk 0:00:03]} 41. Qxe5+ {[%clk 0:00:03]} 1-0


[Site "https://www.chess.com"]

[Event "Titled Tuesday Blitz March 08 Late 2022"]
[White "Gracia Alvarez, Gerardo Antonio"]
[Black "Gulecyuz, Deniz"]
[WhiteFideId "5109124"]
[BlackFideId "30921341"]
[WhiteElo "2139"]
[BlackElo "1923"]
[Result "1-0"]
[Round "02"]
[TimeControl "180+1"]
[Date "2022.03.09"]
[WhiteClock "0:00:37"]
[BlackClock "0:00:08"]

1. e4 {[%clk 0:02:58]}  c5 {[%clk 0:03:00]} 2. Nc3 {[%clk 0:02:57]}  Nc6 {[%clk 0:02:59]} 3. Bb5 {[%clk 0:02:57]}  g6 {[%clk 0:02:58]} 4. Bxc6 {[%clk 0:02:56]}  bxc6 {[%clk 0:02:57]} 5. d3 {[%clk 0:02:56]}  Bg7 {[%clk 0:02:56]} 6. f4 {[%clk 0:02:48]}  e5 {[%clk 0:02:50]} 7. fxe5 {[%clk 0:02:39]}  Bxe5 {[%clk 0:02:45]} 8. Nf3 {[%clk 0:02:38]}  Bg7 {[%clk 0:02:45]} 9. O-O {[%clk 0:02:38]}  d6 {[%clk 0:02:41]} 10. Bg5 {[%clk 0:02:32]}  Qc7 {[%clk 0:02:38]} 11. Qd2 {[%clk 0:02:29]}  h6 {[%clk 0:02:13]} 12. Bh4 {[%clk 0:02:26]}  Ne7 {[%clk 0:02:10]} 13. Rae1 {[%clk 0:02:00]}  O-O {[%clk 0:01:55]} 14. Kh1 {[%clk 0:02:01]}  Rb8 {[%clk 0:01:52]} 15. Nd1 {[%clk 0:01:57]}  Be6 {[%clk 0:01:49]} 16. b3 {[%clk 0:01:56]}  Nc8 {[%clk 0:01:41]} 17. d4 {[%clk 0:01:53]}  cxd4 {[%clk 0:01:39]} 18. Nxd4 {[%clk 0:01:53]}  Bd7 {[%clk 0:01:37]} 19. Bf6 {[%clk 0:01:47]}  d5 {[%clk 0:00:48]} 20. e5 {[%clk 0:01:42]}  c5 {[%clk 0:00:39]} 21. Nf3 {[%clk 0:01:39]}  d4 {[%clk 0:00:40]} 22. Nf2 {[%clk 0:01:33]}  Re8 {[%clk 0:00:27]} 23. Ne4 {[%clk 0:01:31]}  Bf5 {[%clk 0:00:26]} 24. Bxg7 {[%clk 0:01:30]}  Kxg7 {[%clk 0:00:22]} 25. Nf6 {[%clk 0:01:30]}  Re6 {[%clk 0:00:18]} 26. g4 {[%clk 0:01:28]}  Ne7 {[%clk 0:00:13]} 27. gxf5 {[%clk 0:01:27]}  Nxf5 {[%clk 0:00:14]} 28. Rg1 {[%clk 0:01:23]}  Ne3 {[%clk 0:00:12]} 29. c3 {[%clk 0:01:17]}  Qc6 {[%clk 0:00:12]} 30. Qf2 {[%clk 0:01:15]}  Rxe5 {[%clk 0:00:07]} 31. cxd4 {[%clk 0:01:12]}  cxd4 {[%clk 0:00:07]} 32. Rc1 {[%clk 0:01:11]}  Qxf6 {[%clk 0:00:07]} 33. Rg3 {[%clk 0:01:10]}  Rf5 {[%clk 0:00:07]} 34. Qe2 {[%clk 0:01:08]}  Re8 {[%clk 0:00:06]} 35. Rc4 {[%clk 0:01:05]}  Re4 {[%clk 0:00:06]} 36. Ra4 {[%clk 0:00:50]}  Ref4 {[%clk 0:00:06]} 37. Ra6 {[%clk 0:00:51]}  Rxf3 {[%clk 0:00:07]} 38. Rxf6 {[%clk 0:00:50]}  Rf1+ {[%clk 0:00:08]} 39. Rg1 {[%clk 0:00:47]}  Rxg1+ {[%clk 0:00:07]} 40. Kxg1 {[%clk 0:00:47]}  Rxf6 {[%clk 0:00:08]} 41. h3 {[%clk 0:00:44]}  Rf1+ {[%clk 0:00:09]} 42. Kh2 {[%clk 0:00:44]}  Rf5 {[%clk 0:00:07]} 43. Qd3 {[%clk 0:00:43]}  Rf4 {[%clk 0:00:06]} 44. Kg3 {[%clk 0:00:42]}  Nf5+ {[%clk 0:00:06]} 45. Kxf4 {[%clk 0:00:41]}  Kf6 {[%clk 0:00:06]} 46. Qe4 {[%clk 0:00:41]}  g5+ {[%clk 0:00:06]} 47. Kf3 {[%clk 0:00:40]}  h5 {[%clk 0:00:07]} 48. Qc6+ {[%clk 0:00:39]}  Kg7 {[%clk 0:00:07]} 49. Qc5 {[%clk 0:00:38]}  Kg6 {[%clk 0:00:07]} 50. Qxa7 {[%clk 0:00:38]}  f6 {[%clk 0:00:08]} 51. a4 {[%clk 0:00:37]} 1-0


[Site "https://www.chess.com"]

[Event "Titled Tuesday Blitz March 08 Late 2022"]
[White "Hambleton, Aman"]
[Black "Ishbaev, Alibek"]
[WhiteFideId "2606577"]
[BlackFideId "14205017"]
[WhiteElo "2552"]
[BlackElo "2326"]
[Result "0-1"]
[Round "02"]
[TimeControl "180+1"]
[Date "2022.03.09"]
[WhiteClock "0:00:02"]
[BlackClock "0:00:32"]

1. d4 {[%clk 0:02:56]}  c5 {[%clk 0:02:57]} 2. d5 {[%clk 0:02:56]}  g6 {[%clk 0:02:57]} 3. c4 {[%clk 0:02:55]}  Bg7 {[%clk 0:02:57]} 4. e4 {[%clk 0:02:54]}  d6 {[%clk 0:02:56]} 5. Bd3 {[%clk 0:02:47]}  e6 {[%clk 0:02:55]} 6. Nc3 {[%clk 0:02:47]}  exd5 {[%clk 0:02:53]} 7. cxd5 {[%clk 0:02:42]}  Ne7 {[%clk 0:02:51]} 8. Nf3 {[%clk 0:02:28]}  O-O {[%clk 0:02:52]} 9. h3 {[%clk 0:02:20]}  f5 {[%clk 0:02:50]} 10. e5 {[%clk 0:01:29]}  dxe5 {[%clk 0:02:47]} 11. d6 {[%clk 0:01:26]}  Nec6 {[%clk 0:02:41]} 12. Bc4+ {[%clk 0:01:25]}  Kh8 {[%clk 0:02:41]} 13. h4 {[%clk 0:01:10]}  Nd4 {[%clk 0:02:38]} 14. h5 {[%clk 0:01:06]}  Nxf3+ {[%clk 0:02:23]} 15. gxf3 {[%clk 0:00:44]}  g5 {[%clk 0:02:20]} 16. h6 {[%clk 0:00:43]}  Bf6 {[%clk 0:02:20]} 17. Be3 {[%clk 0:00:18]}  Nc6 {[%clk 0:02:06]} 18. Bxc5 {[%clk 0:00:18]}  Nd4 {[%clk 0:02:06]} 19. Nd5 {[%clk 0:00:10]}  Be6 {[%clk 0:01:59]} 20. Rc1 {[%clk 0:00:04]}  Rc8 {[%clk 0:01:44]} 21. b4 {[%clk 0:00:02]}  b6 {[%clk 0:01:17]} 22. Bxd4 {[%clk 0:00:02]}  Bxd5 {[%clk 0:01:11]} 23. Bxd5 {[%clk 0:00:02]}  Rxc1 {[%clk 0:01:10]} 24. Qxc1 {[%clk 0:00:02]}  Qxd6 {[%clk 0:01:10]} 25. Bb3 {[%clk 0:00:02]}  Qxd4 {[%clk 0:01:06]} 26. Kf1 {[%clk 0:00:02]}  Qd3+ {[%clk 0:00:41]} 27. Kg2 {[%clk 0:00:02]}  e4 {[%clk 0:00:42]} 28. Rh3 {[%clk 0:00:02]}  exf3+ {[%clk 0:00:35]} 29. Rxf3 {[%clk 0:00:03]}  Qe4 {[%clk 0:00:36]} 30. Qd1 {[%clk 0:00:03]}  g4 {[%clk 0:00:35]} 31. Qd7 {[%clk 0:00:02]}  gxf3+ {[%clk 0:00:32]} 0-1


[Site "https://www.chess.com"]

[Event "Titled Tuesday Blitz March 08 Late 2022"]
[White "Janaszak, Dawid"]
[Black "Lopez Del Alamo, Antonio"]
[WhiteFideId "1119206"]
[BlackFideId "2227339"]
[WhiteElo "2199"]
[BlackElo "2082"]
[Result "0-1"]
[Round "02"]
[TimeControl "180+1"]
[Date "2022.03.09"]
[WhiteClock "0:00:08"]
[BlackClock "0:00:11"]

1. e4 {[%clk 0:02:40]}  c5 {[%clk 0:02:51]} 2. Nc3 {[%clk 0:02:40]}  Nc6 {[%clk 0:02:48]} 3. Bb5 {[%clk 0:02:39]}  Nd4 {[%clk 0:02:46]} 4. Nf3 {[%clk 0:02:39]}  Nxb5 {[%clk 0:02:45]} 5. Nxb5 {[%clk 0:02:40]}  e6 {[%clk 0:02:44]} 6. d4 {[%clk 0:02:38]}  a6 {[%clk 0:02:43]} 7. Nc3 {[%clk 0:02:38]}  cxd4 {[%clk 0:02:43]} 8. Qxd4 {[%clk 0:02:38]}  Qc7 {[%clk 0:02:41]} 9. O-O {[%clk 0:02:30]}  b5 {[%clk 0:02:37]} 10. Re1 {[%clk 0:02:24]}  Bb7 {[%clk 0:02:35]} 11. Nd5 {[%clk 0:02:24]}  Bxd5 {[%clk 0:02:05]} 12. exd5 {[%clk 0:02:25]}  Qxc2 {[%clk 0:02:01]} 13. Bf4 {[%clk 0:02:11]}  Qc4 {[%clk 0:01:54]} 14. Qd2 {[%clk 0:02:09]}  Bb4 {[%clk 0:01:48]} 15. Qe3 {[%clk 0:01:57]}  Bxe1 {[%clk 0:01:47]} 16. Rxe1 {[%clk 0:01:55]}  Nf6 {[%clk 0:01:46]} 17. dxe6 {[%clk 0:01:39]}  dxe6 {[%clk 0:01:41]} 18. Bd6 {[%clk 0:01:33]}  Rd8 {[%clk 0:01:34]} 19. Ne5 {[%clk 0:01:25]}  Qd5 {[%clk 0:01:27]} 20. Qa7 {[%clk 0:01:17]}  Nd7 {[%clk 0:01:23]} 21. Ba3 {[%clk 0:00:48]}  f6 {[%clk 0:01:08]} 22. Nf3 {[%clk 0:00:42]}  Kf7 {[%clk 0:01:03]} 23. Qxa6 {[%clk 0:00:41]}  Rhe8 {[%clk 0:01:00]} 24. Qa5 {[%clk 0:00:37]}  Kg8 {[%clk 0:00:55]} 25. h3 {[%clk 0:00:37]}  e5 {[%clk 0:00:51]} 26. Nh2 {[%clk 0:00:33]}  Ra8 {[%clk 0:00:45]} 27. Qb4 {[%clk 0:00:32]}  Ra4 {[%clk 0:00:40]} 28. Qc3 {[%clk 0:00:20]}  Rc4 {[%clk 0:00:39]} 29. Qb3 {[%clk 0:00:20]}  Rd4 {[%clk 0:00:34]} 30. Qxd5+ {[%clk 0:00:16]}  Rxd5 {[%clk 0:00:33]} 31. Bb4 {[%clk 0:00:16]}  Nb6 {[%clk 0:00:30]} 32. b3 {[%clk 0:00:16]}  Rd3 {[%clk 0:00:29]} 33. Nf1 {[%clk 0:00:14]}  Nd5 {[%clk 0:00:29]} 34. Bc5 {[%clk 0:00:13]}  Ra8 {[%clk 0:00:27]} 35. Re2 {[%clk 0:00:13]}  Rd1 {[%clk 0:00:23]} 36. g3 {[%clk 0:00:13]}  Nc3 {[%clk 0:00:22]} 37. Rc2 {[%clk 0:00:13]}  Nxa2 {[%clk 0:00:21]} 38. b4 {[%clk 0:00:12]}  Ra4 {[%clk 0:00:19]} 39. Rb2 {[%clk 0:00:12]}  Nc3 {[%clk 0:00:19]} 40. Kg2 {[%clk 0:00:11]}  Nd5 {[%clk 0:00:19]} 41. Ne3 {[%clk 0:00:10]}  Nxe3+ {[%clk 0:00:18]} 42. Bxe3 {[%clk 0:00:10]}  Rd5 {[%clk 0:00:18]} 43. Bc5 {[%clk 0:00:11]}  Kf7 {[%clk 0:00:18]} 44. Rb3 {[%clk 0:00:11]}  Ra1 {[%clk 0:00:18]} 45. g4 {[%clk 0:00:11]}  Ke6 {[%clk 0:00:18]} 46. Rf3 {[%clk 0:00:11]}  Rc1 {[%clk 0:00:17]} 47. Re3 {[%clk 0:00:11]}  Rcxc5 {[%clk 0:00:17]} 48. bxc5 {[%clk 0:00:10]}  Rxc5 {[%clk 0:00:17]} 49. Kf1 {[%clk 0:00:10]}  b4 {[%clk 0:00:17]} 50. Rb3 {[%clk 0:00:09]}  Rb5 {[%clk 0:00:14]} 51. Ke2 {[%clk 0:00:09]}  Kd5 {[%clk 0:00:15]} 52. Kd3 {[%clk 0:00:10]}  Kc5 {[%clk 0:00:15]} 53. f3 {[%clk 0:00:09]}  Ra5 {[%clk 0:00:15]} 54. Rb1 {[%clk 0:00:09]}  Ra3+ {[%clk 0:00:16]} 55. Ke4 {[%clk 0:00:09]}  Rc3 {[%clk 0:00:14]} 56. f4 {[%clk 0:00:09]}  exf4 {[%clk 0:00:12]} 57. Kxf4 {[%clk 0:00:09]}  b3 {[%clk 0:00:13]} 58. h4 {[%clk 0:00:09]}  Kc4 {[%clk 0:00:12]} 59. g5 {[%clk 0:00:09]}  fxg5+ {[%clk 0:00:12]} 60. hxg5 {[%clk 0:00:10]}  Rc2 {[%clk 0:00:12]} 61. Rh1 {[%clk 0:00:08]}  b2 {[%clk 0:00:11]} 62. g6 {[%clk 0:00:08]}  hxg6 {[%clk 0:00:11]} 0-1


[Site "https://www.chess.com"]

[Event "Titled Tuesday Blitz March 08 Late 2022"]
[White "Jobava, Baadur"]
[Black "Stoleriu, George"]
[WhiteFideId "13601520"]
[BlackFideId "1227505"]
[WhiteElo "2617"]
[BlackElo "2203"]
[Result "1-0"]
[Round "02"]
[TimeControl "180+1"]
[Date "2022.03.08"]
[WhiteClock "0:00:21"]
[BlackClock "0:00:05"]

1. d4 {[%clk 0:02:53]}  e6 {[%clk 0:02:56]} 2. Nc3 {[%clk 0:02:53]}  Nf6 {[%clk 0:02:53]} 3. Bf4 {[%clk 0:02:53]}  d5 {[%clk 0:02:53]} 4. Nb5 {[%clk 0:02:53]}  Na6 {[%clk 0:02:52]} 5. e3 {[%clk 0:02:53]}  c6 {[%clk 0:02:52]} 6. Nc3 {[%clk 0:02:53]}  Nc7 {[%clk 0:02:49]} 7. Nf3 {[%clk 0:02:54]}  Bd6 {[%clk 0:02:50]} 8. Bd3 {[%clk 0:02:53]}  O-O {[%clk 0:02:49]} 9. Ne5 {[%clk 0:02:52]}  Nfe8 {[%clk 0:02:42]} 10. Qh5 {[%clk 0:02:47]}  g6 {[%clk 0:02:39]} 11. Qh6 {[%clk 0:02:44]}  Qf6 {[%clk 0:02:35]} 12. Ng4 {[%clk 0:02:37]}  Qg7 {[%clk 0:02:34]} 13. Qxg7+ {[%clk 0:02:37]}  Kxg7 {[%clk 0:02:32]} 14. Bh6+ {[%clk 0:02:37]}  Kg8 {[%clk 0:02:32]} 15. Bxf8 {[%clk 0:02:38]}  Kxf8 {[%clk 0:02:33]} 16. f4 {[%clk 0:02:36]}  f6 {[%clk 0:02:24]} 17. h4 {[%clk 0:02:35]}  h5 {[%clk 0:02:20]} 18. Nf2 {[%clk 0:02:35]}  f5 {[%clk 0:02:20]} 19. Ne2 {[%clk 0:02:32]}  b6 {[%clk 0:02:18]} 20. c3 {[%clk 0:02:31]}  a5 {[%clk 0:02:18]} 21. Kd2 {[%clk 0:02:32]}  Nf6 {[%clk 0:02:17]} 22. Nh3 {[%clk 0:02:31]}  Ng4 {[%clk 0:02:14]} 23. Ng5 {[%clk 0:02:30]}  Nf2 {[%clk 0:02:09]} 24. Rhc1 {[%clk 0:02:30]}  Nxd3 {[%clk 0:02:09]} 25. Kxd3 {[%clk 0:02:31]}  Ba6+ {[%clk 0:02:10]} 26. Kd2 {[%clk 0:02:32]}  Ke7 {[%clk 0:02:09]} 27. Ng1 {[%clk 0:02:31]}  Ne8 {[%clk 0:02:09]} 28. N1f3 {[%clk 0:02:32]}  Nf6 {[%clk 0:02:09]} 29. Ne5 {[%clk 0:02:32]}  Bxe5 {[%clk 0:02:09]} 30. fxe5 {[%clk 0:02:32]}  Ng4 {[%clk 0:02:07]} 31. Nh3 {[%clk 0:02:30]}  Kf7 {[%clk 0:02:05]} 32. b3 {[%clk 0:02:29]}  c5 {[%clk 0:01:55]} 33. a4 {[%clk 0:02:22]}  Ra7 {[%clk 0:01:23]} 34. Rab1 {[%clk 0:02:21]}  Ra8 {[%clk 0:01:19]} 35. b4 {[%clk 0:02:16]}  axb4 {[%clk 0:00:46]} 36. dxc5 {[%clk 0:02:16]}  bxc5 {[%clk 0:00:17]} 37. Ng5+ {[%clk 0:02:17]}  Ke7 {[%clk 0:00:17]} 38. cxb4 {[%clk 0:02:18]}  c4 {[%clk 0:00:15]} 39. b5 {[%clk 0:02:19]}  Bb7 {[%clk 0:00:15]} 40. Ra1 {[%clk 0:02:19]}  Nxe5 {[%clk 0:00:16]} 41. a5 {[%clk 0:02:19]}  Nd7 {[%clk 0:00:14]} 42. Rcb1 {[%clk 0:02:14]}  Kd6 {[%clk 0:00:11]} 43. Nf7+ {[%clk 0:02:12]}  Kc5 {[%clk 0:00:12]} 44. Ng5 {[%clk 0:02:07]}  Kd6 {[%clk 0:00:12]} 45. Kc3 {[%clk 0:02:07]}  Nc5 {[%clk 0:00:12]} 46. a6 {[%clk 0:02:05]}  Bc8 {[%clk 0:00:12]} 47. Nf7+ {[%clk 0:02:05]}  Ke7 {[%clk 0:00:11]} 48. Ne5 {[%clk 0:02:06]}  Kd6 {[%clk 0:00:11]} 49. Nc6 {[%clk 0:02:06]}  Ne4+ {[%clk 0:00:10]} 50. Kc2 {[%clk 0:02:03]}  Nc5 {[%clk 0:00:10]} 51. Na5 {[%clk 0:01:57]}  e5 {[%clk 0:00:07]} 52. a7 {[%clk 0:01:56]}  f4 {[%clk 0:00:06]} 53. exf4 {[%clk 0:01:56]}  Bf5+ {[%clk 0:00:06]} 54. Kc3 {[%clk 0:01:53]}  Bxb1 {[%clk 0:00:07]} 55. fxe5+ {[%clk 0:01:53]}  Ke6 {[%clk 0:00:06]} 56. b6 {[%clk 0:01:51]}  Be4 {[%clk 0:00:06]} 57. Kd4 {[%clk 0:01:50]}  Nd7 {[%clk 0:00:03]} 58. Nxc4 {[%clk 0:01:42]}  dxc4 {[%clk 0:00:03]} 59. Kxe4 {[%clk 0:01:42]}  Nxb6 {[%clk 0:00:03]} 60. Ra6 {[%clk 0:01:42]}  c3 {[%clk 0:00:03]} 61. Rxb6+ {[%clk 0:01:42]}  Ke7 {[%clk 0:00:04]} 62. Rb7+ {[%clk 0:01:42]}  Ke6 {[%clk 0:00:04]} 63. Rc7 {[%clk 0:01:42]}  c2 {[%clk 0:00:05]} 64. Rxc2 {[%clk 0:01:39]}  Rxa7 {[%clk 0:00:05]} 65. Rc6+ {[%clk 0:01:40]}  Kf7 {[%clk 0:00:05]} 66. Kd5 {[%clk 0:01:32]}  Ra2 {[%clk 0:00:03]} 67. Rc7+ {[%clk 0:01:32]}  Kf8 {[%clk 0:00:04]} 68. Ke6 {[%clk 0:01:16]}  Ra6+ {[%clk 0:00:04]} 69. Kd7 {[%clk 0:01:15]}  Ra2 {[%clk 0:00:03]} 70. Rc6 {[%clk 0:01:09]}  Rxg2 {[%clk 0:00:03]} 71. Rf6+ {[%clk 0:01:09]}  Kg7 {[%clk 0:00:03]} 72. Rf1 {[%clk 0:01:06]}  Rd2+ {[%clk 0:00:03]} 73. Ke7 {[%clk 0:01:06]}  Rd4 {[%clk 0:00:03]} 74. Rh1 {[%clk 0:01:04]}  Ra4 {[%clk 0:00:03]} 75. Rd1 {[%clk 0:00:50]}  g5 {[%clk 0:00:04]} 76. hxg5 {[%clk 0:00:49]}  Kg6 {[%clk 0:00:04]} 77. e6 {[%clk 0:00:49]}  Kxg5 {[%clk 0:00:04]} 78. Kf7 {[%clk 0:00:46]}  Rf4+ {[%clk 0:00:04]} 79. Ke8 {[%clk 0:00:43]}  Re4 {[%clk 0:00:05]} 80. e7 {[%clk 0:00:43]}  h4 {[%clk 0:00:04]} 81. Kf7 {[%clk 0:00:44]}  Kg4 {[%clk 0:00:04]} 82. Rd4 {[%clk 0:00:42]}  Rxd4 {[%clk 0:00:05]} 83. e8=Q {[%clk 0:00:43]}  Rf4+ {[%clk 0:00:05]} 84. Kg6 {[%clk 0:00:43]}  h3 {[%clk 0:00:06]} 85. Qe2+ {[%clk 0:00:27]}  Kg3 {[%clk 0:00:06]} 86. Qe3+ {[%clk 0:00:26]}  Rf3 {[%clk 0:00:07]} 87. Qg1+ {[%clk 0:00:26]}  Kf4 {[%clk 0:00:06]} 88. Kh5 {[%clk 0:00:26]}  Rg3 {[%clk 0:00:04]} 89. Qh2 {[%clk 0:00:24]}  Kf3 {[%clk 0:00:04]} 90. Kh4 {[%clk 0:00:24]}  Rg8 {[%clk 0:00:03]} 91. Qxh3+ {[%clk 0:00:24]}  Kf2 {[%clk 0:00:04]} 92. Qf5+ {[%clk 0:00:23]}  Kg1 {[%clk 0:00:04]} 93. Qb1+ {[%clk 0:00:22]}  Kg2 {[%clk 0:00:05]} 94. Qa2+ {[%clk 0:00:21]} 1-0


[Site "https://www.chess.com"]

[Event "Titled Tuesday Blitz March 08 Late 2022"]
[White "Jones, Gawain C B"]
[Black "Suder, Jakub"]
[WhiteFideId "409561"]
[BlackFideId "1195310"]
[WhiteElo "2657"]
[BlackElo "2058"]
[Result "1/2-1/2"]
[Round "02"]
[TimeControl "180+1"]
[Date "2022.03.08"]
[WhiteClock "0:00:08"]
[BlackClock "0:00:06"]

1. e4 {[%clk 0:03:00]}  c5 {[%clk 0:02:48]} 2. Nc3 {[%clk 0:03:00]}  Nc6 {[%clk 0:02:48]} 3. Bb5 {[%clk 0:03:00]}  Nd4 {[%clk 0:02:48]} 4. Nf3 {[%clk 0:02:59]}  Nxb5 {[%clk 0:02:40]} 5. Nxb5 {[%clk 0:03:00]}  a6 {[%clk 0:02:38]} 6. Nc3 {[%clk 0:03:00]}  e6 {[%clk 0:02:38]} 7. d4 {[%clk 0:03:00]}  cxd4 {[%clk 0:02:39]} 8. Qxd4 {[%clk 0:03:00]}  d6 {[%clk 0:02:34]} 9. Bg5 {[%clk 0:02:56]}  Nf6 {[%clk 0:02:34]} 10. O-O-O {[%clk 0:02:47]}  Be7 {[%clk 0:02:28]} 11. e5 {[%clk 0:02:32]}  dxe5 {[%clk 0:02:28]} 12. Qxe5 {[%clk 0:02:32]}  Bd7 {[%clk 0:02:21]} 13. Rd2 {[%clk 0:02:11]}  Qc8 {[%clk 0:02:13]} 14. Rhd1 {[%clk 0:02:02]}  Bc6 {[%clk 0:02:13]} 15. Nd4 {[%clk 0:02:00]}  O-O {[%clk 0:01:54]} 16. Nf5 {[%clk 0:02:00]}  exf5 {[%clk 0:01:50]} 17. Qxe7 {[%clk 0:02:00]}  Ne4 {[%clk 0:01:48]} 18. Nxe4 {[%clk 0:01:48]}  fxe4 {[%clk 0:01:39]} 19. h3 {[%clk 0:01:19]}  h6 {[%clk 0:01:37]} 20. Be3 {[%clk 0:01:10]}  Re8 {[%clk 0:01:32]} 21. Qc5 {[%clk 0:01:05]}  Qe6 {[%clk 0:01:31]} 22. Rd6 {[%clk 0:01:04]}  Qxa2 {[%clk 0:01:25]} 23. Qc3 {[%clk 0:01:00]}  Rad8 {[%clk 0:01:08]} 24. Qa3 {[%clk 0:00:40]}  Qxa3 {[%clk 0:01:03]} 25. bxa3 {[%clk 0:00:41]}  Rxd6 {[%clk 0:01:00]} 26. Rxd6 {[%clk 0:00:42]}  f6 {[%clk 0:00:57]} 27. h4 {[%clk 0:00:39]}  Kf7 {[%clk 0:00:56]} 28. Kb2 {[%clk 0:00:38]}  Re5 {[%clk 0:00:54]} 29. g3 {[%clk 0:00:37]}  Ke7 {[%clk 0:00:50]} 30. Rd4 {[%clk 0:00:37]}  Rb5+ {[%clk 0:00:47]} 31. Rb4 {[%clk 0:00:36]}  Rxb4+ {[%clk 0:00:40]} 32. axb4 {[%clk 0:00:37]}  Ke6 {[%clk 0:00:40]} 33. c4 {[%clk 0:00:28]}  g5 {[%clk 0:00:39]} 34. Kc3 {[%clk 0:00:21]}  Ke5 {[%clk 0:00:28]} 35. Bb6 {[%clk 0:00:16]}  gxh4 {[%clk 0:00:26]} 36. gxh4 {[%clk 0:00:16]}  Kf4 {[%clk 0:00:23]} 37. Be3+ {[%clk 0:00:11]}  Kf3 {[%clk 0:00:20]} 38. Bxh6 {[%clk 0:00:11]}  Kxf2 {[%clk 0:00:20]} 39. Kd4 {[%clk 0:00:09]}  Kg3 {[%clk 0:00:18]} 40. Bg7 {[%clk 0:00:08]}  Kxh4 {[%clk 0:00:12]} 41. Bxf6+ {[%clk 0:00:08]}  Kg4 {[%clk 0:00:13]} 42. b5 {[%clk 0:00:08]}  axb5 {[%clk 0:00:09]} 43. cxb5 {[%clk 0:00:08]}  Kf3 {[%clk 0:00:08]} 44. bxc6 {[%clk 0:00:07]}  bxc6 {[%clk 0:00:08]} 45. Bg5 {[%clk 0:00:07]}  Kg4 {[%clk 0:00:05]} 46. Bc1 {[%clk 0:00:07]}  Kf3 {[%clk 0:00:05]} 47. Bh6 {[%clk 0:00:07]}  Kg4 {[%clk 0:00:05]} 48. Kxe4 {[%clk 0:00:07]}  c5 {[%clk 0:00:05]} 49. Kd3 {[%clk 0:00:07]}  c4+ {[%clk 0:00:06]} 50. Kxc4 {[%clk 0:00:08]} 1/2-1/2


[Site "https://www.chess.com"]

[Event "Titled Tuesday Blitz March 08 Late 2022"]
[White "Karas, Marek"]
[Black "Dardha, Daniel"]
[WhiteFideId "14928558"]
[BlackFideId "240990"]
[WhiteElo "2271"]
[BlackElo "2482"]
[Result "0-1"]
[Round "02"]
[TimeControl "180+1"]
[Date "2022.03.08"]
[WhiteClock "0:00:10"]
[BlackClock "0:00:50"]

1. d4 {[%clk 0:03:00]}  f5 {[%clk 0:02:57]} 2. Qd3 {[%clk 0:02:57]}  d5 {[%clk 0:02:56]} 3. c4 {[%clk 0:02:56]}  dxc4 {[%clk 0:02:53]} 4. Qxc4 {[%clk 0:02:56]}  Nf6 {[%clk 0:02:52]} 5. Nc3 {[%clk 0:02:55]}  c5 {[%clk 0:02:40]} 6. Nf3 {[%clk 0:02:38]}  Nc6 {[%clk 0:02:32]} 7. dxc5 {[%clk 0:02:22]}  e5 {[%clk 0:02:32]} 8. e3 {[%clk 0:02:14]}  e4 {[%clk 0:02:27]} 9. Ng5 {[%clk 0:02:09]}  Ne5 {[%clk 0:02:27]} 10. Qa4+ {[%clk 0:02:02]}  Bd7 {[%clk 0:02:27]} 11. Bb5 {[%clk 0:02:00]}  a6 {[%clk 0:02:19]} 12. Bxd7+ {[%clk 0:02:00]}  Qxd7 {[%clk 0:02:19]} 13. Qxd7+ {[%clk 0:01:59]}  Nfxd7 {[%clk 0:02:19]} 14. O-O {[%clk 0:01:51]}  Nxc5 {[%clk 0:02:18]} 15. Bd2 {[%clk 0:01:43]}  h6 {[%clk 0:02:17]} 16. Nh3 {[%clk 0:01:43]}  Rd8 {[%clk 0:02:07]} 17. Rfd1 {[%clk 0:01:42]}  Nc4 {[%clk 0:02:07]} 18. Bc1 {[%clk 0:01:37]}  Nd3 {[%clk 0:01:58]} 19. Nf4 {[%clk 0:01:29]}  Bb4 {[%clk 0:01:53]} 20. Ncd5 {[%clk 0:01:15]}  Ba5 {[%clk 0:01:43]} 21. b3 {[%clk 0:01:10]}  Nxf4 {[%clk 0:01:36]} 22. exf4 {[%clk 0:00:55]}  Nb6 {[%clk 0:01:36]} 23. Nc7+ {[%clk 0:00:51]}  Kf7 {[%clk 0:01:31]} 24. Be3 {[%clk 0:00:47]}  Nc8 {[%clk 0:01:23]} 25. Nd5 {[%clk 0:00:44]}  Ke6 {[%clk 0:01:22]} 26. b4 {[%clk 0:00:35]}  Rxd5 {[%clk 0:01:22]} 27. bxa5 {[%clk 0:00:36]}  Rxa5 {[%clk 0:01:17]} 28. Rab1 {[%clk 0:00:34]}  Nd6 {[%clk 0:01:14]} 29. Rb6 {[%clk 0:00:29]}  Rd5 {[%clk 0:01:11]} 30. Rc1 {[%clk 0:00:25]}  Kd7 {[%clk 0:01:12]} 31. h3 {[%clk 0:00:23]}  Rc8 {[%clk 0:01:09]} 32. Rcb1 {[%clk 0:00:21]}  Rc6 {[%clk 0:01:07]} 33. R6b2 {[%clk 0:00:19]}  b5 {[%clk 0:01:07]} 34. g4 {[%clk 0:00:18]}  g6 {[%clk 0:01:06]} 35. Kg2 {[%clk 0:00:19]}  Nc4 {[%clk 0:01:02]} 36. Re2 {[%clk 0:00:18]}  h5 {[%clk 0:01:00]} 37. Kg3 {[%clk 0:00:12]}  Ke6 {[%clk 0:01:00]} 38. Kh4 {[%clk 0:00:12]}  Kf6 {[%clk 0:00:57]} 39. gxh5 {[%clk 0:00:12]}  gxh5 {[%clk 0:00:58]} 40. Kxh5 {[%clk 0:00:13]}  Rc7 {[%clk 0:00:54]} 41. Kh6 {[%clk 0:00:12]}  Nxe3 {[%clk 0:00:50]} 42. fxe3 {[%clk 0:00:10]}  Rd8 {[%clk 0:00:50]} 0-1


[Site "https://www.chess.com"]